bitfinex/quotes_BTCUSD_20250218
["timestamp","ask_amount","ask_price","bid_price","bid_amount"]
[1739898061813,0.01648262,94825.0,94823.0,0.01078197]
[1739898062014,0.01648262,94825.0,94822.0,0.10781971]
[1739898062221,0.01648262,94825.0,94824.0,0.00531251]
[1739898062431,0.01648262,94825.0,94823.0,0.00531417]
[1739898062628,0.01648262,94825.0,94824.0,0.26600316]
[1739898062873,0.0463,94842.0,94824.0,0.10781616]
[1739898062874,0.210883,94840.0,94824.0,0.10781616]
[1739898063048,0.0212147,94845.0,94844.0,0.158154]
[1739898063228,0.0212147,94845.0,94844.0,0.10250365]
[1739898063454,0.0465,94860.0,94844.0,0.10883711]
[1739898063664,0.158128,94860.0,94845.0,0.26170886]
[1739898063870,0.09257792,94866.0,94845.0,0.10250365]
[1739898064099,0.158132,94858.0,94846.0,0.00526847]
[1739898064317,0.14975007,94860.0,94847.0,0.10250365]
[1739898064519,0.158147,94849.0,94848.0,0.00526515]
[1739898064736,0.158151,94846.0,94845.0,0.0001325]
[1739898064908,0.158151,94846.0,94845.0,0.00540264]
[1739898065130,0.210844,94857.0,94845.0,0.0001325]
[1739898065368,0.0808,94858.0,94845.0,0.0001325]
[1739898065697,0.158148,94848.0,94845.0,0.0001325]
[1739898065909,0.210858,94851.0,94845.0,0.0001325]
[1739898066115,0.158148,94848.0,94846.0,0.00526847]
[1739898066332,0.158149,94847.0,94845.0,0.0011325]
[1739898066536,0.04757582,94846.0,94845.0,0.0001325]
[1739898066646,0.0463,94846.0,94845.0,0.0001325]
[1739898066855,0.158149,94847.0,94845.0,0.0041325]
[1739898067261,0.0457,94855.0,94845.0,0.0041325]
[1739898067463,0.158151,94846.0,94845.0,0.0001325]
[1739898067681,0.01651872,94847.0,94845.0,0.0041325]
[1739898068142,0.01651872,94847.0,94846.0,0.26170894]
[1739898068339,0.00024789,94874.0,94846.0,0.43160365]
[1739898068541,0.01651687,94861.0,94848.0,0.15]
[1739898068785,0.10201303,94880.0,94849.0,0.10355773]
[1739898068992,0.047,94886.0,94851.0,0.15]
[1739898069185,0.01651547,94885.0,94858.0,0.10250365]
[1739898069336,0.047,94899.0,94860.0,0.023]
[1739898069537,0.047,94899.0,94870.0,0.210814]
[1739898069538,0.2111126,94889.0,94870.0,0.210814]
[1739898069711,0.0003406,94889.0,94871.0,0.43160365]
[1739898069924,0.0003406,94889.0,94872.0,0.00627286]
[1739898070156,0.0003406,94889.0,94874.0,0.210805]
[1739898070362,0.0003406,94889.0,94875.0,0.10250365]
[1739898070567,0.1581,94877.0,94875.0,0.10770837]
[1739898070783,0.210781,94886.0,94876.0,0.01410316]
[1739898070984,0.0003406,94889.0,94877.0,0.10250365]
[1739898071253,0.158083,94887.0,94877.0,0.10770504]
[1739898071474,0.0003406,94889.0,94877.0,0.10783754]
[1739898072609,0.158093,94881.0,94877.0,0.10783754]
[1739898072787,0.158086,94885.0,94877.0,0.10783754]
[1739898072995,0.0003406,94889.0,94877.0,0.10263615]
[1739898073209,0.158084,94886.0,94878.0,0.00519973]
[1739898073414,0.0003406,94889.0,94879.0,0.10250365]
[1739898073639,0.0003406,94889.0,94880.0,0.01118359]
[1739898073891,0.0003406,94889.0,94881.0,0.10355747]
[1739898074276,0.0003406,94889.0,94882.0,0.00519308]
[1739898074501,0.0003406,94889.0,94883.0,0.10250365]
[1739898074883,0.0003406,94889.0,94884.0,0.00518976]
[1739898075107,0.0003406,94889.0,94884.0,0.10769341]
[1739898075535,0.1584206,94889.0,94884.0,0.10769341]
[1739898075739,0.0003406,94889.0,94884.0,0.10769341]
[1739898075998,0.0003406,94889.0,94885.0,0.47775517]
[1739898076207,0.0003406,94889.0,94888.0,0.158081]
[1739898076421,0.0003406,94889.0,94888.0,0.28358465]
[1739898076626,0.0003406,94889.0,94888.0,0.43876233]
[1739898077247,0.158036,94915.0,94891.0,0.023]
[1739898077474,0.14975007,94930.0,94891.0,0.023]
[1739898077475,0.15,94928.0,94893.0,0.023]
[1739898077682,0.158039,94914.0,94903.0,0.158056]
[1739898077891,0.210703,94921.0,94892.0,0.9498032]
[1739898077892,0.17134422,94930.0,94904.0,0.10250365]
[1739898078097,0.158034,94916.0,94905.0,0.158052]
[1739898078297,0.15,94929.0,94906.0,0.10250365]
[1739898078513,4.8119,94928.0,94907.0,0.0107652]
[1739898078712,4.8119,94928.0,94908.0,0.10250365]
[1739898078921,0.6749,94928.0,94908.0,0.10250365]
[1739898079057,0.210684,94929.0,94910.0,0.158043]
[1739898079269,0.158027,94920.0,94909.0,0.158046]
[1739898079478,0.158027,94920.0,94919.0,0.158029]
[1739898079479,0.00044161,94920.0,94919.0,0.158029]
[1739898079679,0.00044161,94920.0,94919.0,0.26053265]
[1739898079888,0.00044161,94920.0,94919.0,0.10762434]
[1739898080516,0.00044161,94920.0,94919.0,0.11362434]
[1739898080727,0.00044161,94920.0,94919.0,0.14605877]
[1739898081611,0.00044161,94920.0,94919.0,0.11362434]
[1739898083235,0.00044161,94920.0,94919.0,0.01112069]
[1739898083436,0.15846861,94920.0,94919.0,0.01112069]
[1739898083914,0.00044161,94920.0,94919.0,0.006]
[1739898084253,0.00044161,94920.0,94919.0,0.26653265]
[1739898084471,0.00044161,94920.0,94919.0,0.15622842]
[1739898084674,0.00044161,94920.0,94919.0,0.16134911]
[1739898084828,0.00044161,94920.0,94919.0,0.11362434]
[1739898085681,0.15846861,94920.0,94919.0,0.01112069]
[1739898086091,0.15804,94913.0,94910.0,0.3291]
[1739898086302,0.00127582,94918.0,94910.0,0.3291]
[1739898086534,0.158032,94917.0,94910.0,0.3291]
[1739898086743,0.00044161,94920.0,94919.0,0.002]
[1739898086967,0.00044161,94920.0,94910.0,0.3291]
[1739898087171,0.158037,94915.0,94910.0,0.3291]
[1739898087384,0.158042,94911.0,94910.0,0.3351]
[1739898087594,0.158039,94914.0,94910.0,0.3291]
[1739898087796,0.00044161,94920.0,94919.0,0.004]
[1739898088442,0.00044161,94920.0,94919.0,0.0202031]
[1739898088684,0.15846861,94920.0,94919.0,0.004]
[1739898088914,0.00044161,94920.0,94919.0,0.10650365]
[1739898089124,0.00044161,94920.0,94919.0,0.10250365]
[1739898089965,0.00044161,94920.0,94919.0,0.10850365]
[1739898090166,0.15846861,94920.0,94919.0,0.006]
[1739898091423,0.15974443,94920.0,94919.0,0.006]
[1739898091625,5.20846861,94920.0,94919.0,0.006]
[1739898092048,5.20880881,94920.0,94919.0,0.006]
[1739898092252,0.158039,94913.0,94912.0,0.3291]
[1739898092463,0.00078181,94920.0,94919.0,0.004]
[1739898092662,0.15880881,94920.0,94919.0,0.004]
[1739898092892,0.15880881,94920.0,94912.0,0.46451365]
[1739898092893,0.00078181,94920.0,94912.0,0.46451365]
[1739898093109,0.158036,94915.0,94913.0,0.10250365]
[1739898093332,0.158034,94916.0,94913.0,0.10761888]
[1739898093538,0.00078181,94920.0,94913.0,0.10761888]
[1739898093759,0.15880881,94920.0,94919.0,0.003]
[1739898093968,0.158037,94914.0,94913.0,0.10761888]
[1739898094186,0.158037,94914.0,94913.0,0.10250365]
[1739898094391,0.00078181,94920.0,94913.0,0.10250365]
[1739898094806,0.158037,94914.0,94913.0,0.10250365]
[1739898095241,0.158035,94916.0,94913.0,0.14566402]
[1739898095468,0.00078181,94920.0,94913.0,0.14966402]
[1739898095686,0.15868944,94923.0,94913.0,0.14566402]
[1739898095890,0.210681,94930.0,94913.0,0.10250365]
[1739898095891,0.158037,94914.0,94913.0,0.10250365]
[1739898096106,0.158037,94914.0,94913.0,0.10550365]
[1739898096363,0.158039,94913.0,94912.0,0.3291]
[1739898097420,0.158036,94915.0,94912.0,0.3291]
[1739898097622,0.210711,94917.0,94912.0,0.3291]
[1739898097849,0.00013242,94930.0,94913.0,0.10250365]
[1739898098061,0.158036,94915.0,94913.0,0.10250365]
[1739898098267,0.210685,94928.0,94913.0,0.10250365]
[1739898098480,0.00013242,94930.0,94913.0,0.10250365]
[1739898098481,0.158016,94927.0,94913.0,0.10250365]
[1739898098689,0.00013242,94930.0,94917.0,0.158031]
[1739898098920,0.158016,94927.0,94918.0,0.10250365]
[1739898099128,0.210683,94929.0,94918.0,0.43671058]
[1739898099336,0.158024,94922.0,94918.0,0.43671058]
[1739898099541,0.00013242,94930.0,94918.0,0.43671058]
[1739898099957,0.158016,94927.0,94918.0,0.59474058]
[1739898100172,0.158018,94926.0,94919.0,0.06406406]
[1739898100372,0.158018,94926.0,94920.0,0.10250365]
[1739898100783,0.00013242,94930.0,94921.0,0.210701]
[1739898100994,0.00013242,94930.0,94929.0,0.158012]
[1739898101199,0.00013242,94930.0,94929.0,0.60541685]
[1739898101632,0.00013242,94930.0,94929.0,0.61049965]
[1739898102659,0.00013242,94930.0,94929.0,0.61649965]
[1739898104722,0.00013242,94930.0,94929.0,0.61049965]
[1739898105114,0.00013242,94930.0,94929.0,0.45948765]
[1739898105963,0.00013242,94930.0,94929.0,0.3411828]
[1739898105964,0.15814342,94930.0,94929.0,0.3411828]
[1739898106584,0.15814342,94930.0,94929.0,0.3361]
[1739898107013,0.15814342,94930.0,94929.0,0.34117083]
[1739898109329,0.00013242,94930.0,94929.0,0.33417083]
[1739898109534,0.00013242,94930.0,94929.0,0.36758791]
[1739898109747,0.00013242,94930.0,94929.0,0.37158791]
[1739898110159,0.15814342,94930.0,94929.0,0.37158791]
[1739898110463,0.15814342,94930.0,94929.0,0.36651708]
[1739898110464,0.00013242,94930.0,94929.0,0.36651708]
[1739898110692,0.15814342,94930.0,94929.0,0.37159255]
[1739898110899,0.00013242,94930.0,94929.0,0.36759255]
[1739898111316,0.00013242,94930.0,94929.0,0.5491962]
[1739898111549,0.158006,94933.0,94929.0,0.5451962]
[1739898111774,0.0789,94960.0,94931.0,0.210679]
[1739898111775,0.157996,94940.0,94931.0,0.210679]
[1739898111985,0.157998,94938.0,94932.0,0.43160365]
[1739898112192,0.01650399,94949.0,94932.0,0.43667414]
[1739898112391,0.158006,94933.0,94932.0,0.47538939]
[1739898112815,0.210669,94936.0,94932.0,0.47538939]
[1739898113033,0.01650399,94949.0,94932.0,0.47538939]
[1739898113247,0.158006,94933.0,94932.0,0.43667414]
[1739898113678,0.158006,94933.0,94932.0,0.33417049]
[1739898114919,0.158006,94933.0,94932.0,0.33817049]
[1739898114920,0.1583462,94933.0,94932.0,0.33817049]
[1739898115858,0.1583462,94933.0,94932.0,0.33417049]
[1739898116107,5.2083462,94933.0,94932.0,0.3321]
[1739898116368,4.0183462,94933.0,94932.0,0.3321]
[1739898116634,3.4696462,94933.0,94932.0,0.3321]
[1739898117111,3.4696462,94933.0,94932.0,0.003]
[1739898117589,0.158021,94924.0,94923.0,0.0001701]
[1739898118094,0.520821,94924.0,94923.0,0.0001701]
[1739898119834,0.158021,94924.0,94923.0,0.0001701]
[1739898120063,5.208021,94924.0,94923.0,0.0001701]
[1739898120285,0.158021,94924.0,94923.0,0.0001701]
[1739898120938,0.15770498,94924.0,94923.0,0.0001701]
[1739898121138,0.15770498,94924.0,94923.0,0.0061701]
[1739898121350,5.08330498,94924.0,94923.0,0.0061701]
[1739898121564,5.20770498,94924.0,94923.0,0.0061701]
[1739898121775,5.07970498,94924.0,94923.0,0.0061701]
[1739898121995,0.15770498,94924.0,94923.0,0.0061701]
[1739898124759,0.1589808,94924.0,94923.0,0.0061701]
[1739898124960,0.15770498,94924.0,94923.0,0.0061701]
[1739898125163,0.0359213,94946.0,94923.0,0.0061701]
[1739898125164,0.0003402,94933.0,94924.0,0.210694]
[1739898125366,0.0003402,94933.0,94926.0,0.21069]
[1739898125605,0.0003402,94933.0,94925.0,0.13719707]
[1739898125767,0.0003402,94933.0,94932.0,0.158007]
[1739898125972,0.0003402,94933.0,94932.0,0.26051065]
[1739898126403,0.0003402,94933.0,94932.0,0.10250365]
[1739898126631,0.1583462,94933.0,94932.0,0.10250365]
[1739898127203,0.0003402,94933.0,94932.0,0.10250365]
[1739898127527,0.0003402,94933.0,94932.0,0.26051065]
[1739898128492,0.0003402,94933.0,94932.0,0.10250365]
[1739898128925,0.1583462,94933.0,94932.0,0.10250365]
[1739898129143,0.0003402,94933.0,94932.0,0.14913336]
[1739898129363,0.1583462,94933.0,94932.0,0.10250365]
[1739898129787,0.0003402,94933.0,94932.0,0.10250365]
[1739898130021,0.0003402,94933.0,94932.0,0.26051065]
[1739898130223,0.0003402,94933.0,94932.0,0.10250365]
[1739898131067,0.1583462,94933.0,94932.0,0.10550365]
[1739898131273,0.0003402,94933.0,94932.0,0.15243336]
[1739898131489,0.0003402,94933.0,94932.0,0.14943336]
[1739898131697,0.0003402,94933.0,94932.0,0.47853336]
[1739898131896,0.1583462,94933.0,94932.0,0.43760365]
[1739898132728,0.1583462,94933.0,94932.0,0.3351]
[1739898132955,0.3083462,94933.0,94932.0,0.3351]
[1739898133161,5.3583462,94933.0,94932.0,0.3351]
[1739898133588,5.2095462,94933.0,94932.0,0.3351]
[1739898133791,3.8348462,94933.0,94932.0,0.3291]
[1739898134261,3.8348462,94933.0,94932.0,0.3321]
[1739898134469,3.8348462,94933.0,94932.0,0.3291]
[1739898134688,3.8348462,94933.0,94932.0,0.3321]
[1739898135120,3.8348462,94933.0,94932.0,0.3291]
[1739898135335,3.8348462,94933.0,94923.0,0.0001701]
[1739898135336,0.158021,94924.0,94923.0,0.0001701]
[1739898135535,0.15929682,94924.0,94923.0,0.0001701]
[1739898136203,0.158021,94924.0,94923.0,0.0001701]
[1739898136817,0.680221,94924.0,94923.0,0.0001701]
[1739898137016,5.208021,94924.0,94923.0,0.0001701]
[1739898137251,2.768221,94924.0,94923.0,0.0001701]
[1739898137457,0.321121,94924.0,94923.0,0.0001701]
[1739898138995,0.321121,94924.0,94923.0,0.0061701]
[1739898139144,0.321121,94924.0,94923.0,0.0001701]
[1739898141386,0.64638954,94924.0,94923.0,0.0001701]
[1739898141571,0.73181084,94924.0,94923.0,0.0001701]
[1739898141991,0.6348423,94924.0,94923.0,0.0001701]
[1739898142538,0.471121,94924.0,94923.0,0.0001701]
[1739898144345,0.471121,94924.0,94923.0,0.0011701]
[1739898145002,0.600521,94924.0,94923.0,0.0011701]
[1739898145551,0.158064,94898.0,94897.0,0.32538206]
[1739898145758,0.158064,94898.0,94891.0,0.0001701]
[1739898145759,0.158069,94895.0,94891.0,0.0001701]
[1739898145956,0.158069,94895.0,94891.0,0.10311536]
[1739898145957,0.158071,94895.0,94891.0,0.10311536]
[1739898146164,0.15,94906.0,94892.0,0.10250365]
[1739898146374,0.14975007,94930.0,94903.0,0.0756]
[1739898146589,0.0003402,94933.0,94905.0,0.0489]
[1739898146808,0.30760784,94932.0,94907.0,0.158049]
[1739898147016,0.2425,94931.0,94916.0,0.158033]
[1739898147219,0.2425,94931.0,94914.0,0.00105347]
[1739898147430,0.2425,94931.0,94915.0,0.10250365]
[1739898147641,0.158031,94918.0,94915.0,0.10250365]
[1739898148059,0.158034,94916.0,94915.0,0.10250365]
[1739898148267,0.14975007,94930.0,94906.0,0.32538206]
[1739898148268,0.158049,94907.0,94906.0,0.32538206]
[1739898148478,0.158046,94909.0,94906.0,0.42788571]
[1739898148658,0.158046,94909.0,94907.0,0.10250365]
[1739898149071,0.158047,94908.0,94907.0,0.10250365]
[1739898149280,0.158049,94907.0,94906.0,0.32538206]
[1739898149480,0.158049,94907.0,94906.0,0.43488571]
[1739898149708,0.210707,94919.0,94906.0,0.43488571]
[1739898149914,0.2425,94918.0,94906.0,0.42788571]
[1739898150095,0.158046,94909.0,94907.0,0.007]
[1739898150319,0.158047,94908.0,94907.0,0.007]
[1739898150453,0.15,94919.0,94907.0,0.09281897]
[1739898150662,0.126,94918.0,94906.0,0.43288571]
[1739898150862,0.210717,94914.0,94906.0,0.43288571]
[1739898151292,0.210699,94922.0,94906.0,0.43288571]
[1739898151496,0.158046,94910.0,94906.0,0.43288571]
[1739898151704,0.210662,94939.0,94907.0,0.17510162]
[1739898151928,0.14975007,94930.0,94907.0,0.17404802]
[1739898152128,4.1622,94929.0,94908.0,0.32538206]
[1739898152339,0.210688,94927.0,94909.0,0.10250365]
[1739898152525,0.158036,94915.0,94909.0,0.10250365]
[1739898152868,0.158034,94917.0,94909.0,0.10250365]
[1739898153000,0.14975007,94930.0,94909.0,0.10250365]
[1739898153211,0.158044,94910.0,94909.0,0.10250365]
[1739898153642,0.14975007,94930.0,94909.0,0.10250365]
[1739898153846,0.158036,94915.0,94909.0,0.10750365]
[1739898154090,0.158039,94913.0,94909.0,0.10750365]
[1739898154298,0.158034,94917.0,94909.0,0.10750365]
[1739898154501,0.15,94929.0,94912.0,0.210719]
[1739898154678,0.15,94927.0,94913.0,0.10250365]
[1739898154909,0.158032,94918.0,94913.0,0.10250365]
[1739898155115,0.360689,94927.0,94913.0,0.10250365]
[1739898155318,0.14975007,94930.0,94913.0,0.10250365]
[1739898155524,0.158029,94919.0,94913.0,0.10250365]
[1739898155732,0.14975007,94930.0,94913.0,0.10250365]
[1739898155908,0.158031,94918.0,94913.0,0.10250365]
[1739898156139,0.158031,94918.0,94913.0,0.10350365]
[1739898156343,0.21071,94918.0,94913.0,0.10250365]
[1739898156547,0.158037,94914.0,94913.0,0.10350365]
[1739898156751,0.158037,94914.0,94913.0,0.001]
[1739898156965,0.158039,94913.0,94909.0,0.32538206]
[1739898157149,0.158039,94913.0,94909.0,0.42788571]
[1739898157580,0.158044,94910.0,94909.0,0.42788571]
[1739898157757,0.158044,94910.0,94909.0,0.32538206]
[1739898158628,0.15,94926.0,94909.0,0.37037027]
[1739898158829,0.158044,94910.0,94909.0,0.37737027]
[1739898159047,0.158044,94910.0,94909.0,0.33238206]
[1739898159253,0.14975007,94920.0,94909.0,0.33238206]
[1739898159459,0.158039,94914.0,94909.0,0.33238206]
[1739898159669,0.158042,94912.0,94909.0,0.32538206]
[1739898159879,0.15,94922.0,94909.0,0.32838206]
[1739898160086,0.210698,94923.0,94909.0,0.32838206]
[1739898160291,0.158039,94913.0,94909.0,0.32538206]
[1739898160493,0.15,94922.0,94909.0,0.32538206]
[1739898160698,0.158043,94911.0,94909.0,0.32538206]
[1739898160986,0.14975007,94920.0,94909.0,0.32538206]
[1739898160987,0.158044,94910.0,94909.0,0.32538206]
[1739898161537,0.158049,94907.0,94906.0,0.0001701]
[1739898162169,5.35932482,94907.0,94906.0,0.0001701]
[1739898162378,5.358049,94907.0,94906.0,0.0001701]
[1739898162586,5.37455785,94907.0,94906.0,0.0001701]
[1739898163012,5.37455785,94907.0,94906.0,0.0051701]
[1739898163223,5.358049,94907.0,94906.0,0.0051701]
[1739898164064,1.356249,94907.0,94906.0,0.0051701]
[1739898164774,1.0482,94907.0,94906.0,0.0001701]
[1739898165008,0.158049,94907.0,94906.0,0.0001701]
[1739898165215,0.158049,94907.0,94906.0,0.0051701]
[1739898165216,5.20932482,94907.0,94906.0,0.0051701]
[1739898165434,5.208049,94907.0,94906.0,0.0001701]
[1739898165861,5.22455937,94907.0,94906.0,0.0051701]
[1739898169983,4.95522737,94907.0,94906.0,0.0051701]
[1739898170197,2.04435937,94907.0,94906.0,0.0051701]
[1739898170424,1.75625937,94907.0,94906.0,0.0051701]
[1739898172779,1.7400892,94907.0,94906.0,0.0051701]
[1739898173765,4.8866892,94907.0,94906.0,0.0051701]
[1739898174786,4.8464892,94907.0,94906.0,0.0051701]
[1739898175787,3.7848892,94907.0,94906.0,0.0051701]
[1739898175994,3.80139961,94907.0,94906.0,0.0051701]
[1739898176398,2.72899961,94907.0,94906.0,0.0051701]
[1739898181777,3.02697517,94907.0,94906.0,0.0051701]
[1739898182561,2.92447152,94907.0,94906.0,0.0051701]
[1739898182737,2.90796111,94907.0,94906.0,0.0051701]
[1739898183776,2.90796111,94907.0,94906.0,0.0001701]
[1739898184150,2.90896111,94907.0,94906.0,0.0001701]
[1739898184360,2.90796111,94907.0,94906.0,0.0001701]
[1739898184567,2.90896111,94907.0,94906.0,0.0001701]
[1739898185001,2.87203981,94907.0,94906.0,0.0001701]
[1739898185210,2.5554402,94907.0,94906.0,0.0001701]
[1739898185364,1.9379402,94907.0,94906.0,0.0001701]
[1739898185562,1.9016402,94907.0,94906.0,0.1582211]
[1739898185774,1.9016402,94907.0,94906.0,0.0001701]
[1739898185968,0.0003402,94907.0,94906.0,0.1582211]
[1739898186182,0.0003402,94907.0,94906.0,0.26072475]
[1739898186381,0.0003402,94907.0,94906.0,0.10267375]
[1739898186777,0.0003402,94907.0,94906.0,0.0001701]
[1739898186778,0.0013402,94907.0,94906.0,0.0001701]
[1739898187248,0.0003402,94907.0,94906.0,0.0001701]
[1739898187432,0.00988651,94910.0,94906.0,0.10767375]
[1739898187725,0.00988651,94910.0,94908.0,0.158047]
[1739898187954,0.00988651,94910.0,94906.0,0.10267375]
[1739898188372,0.00988651,94910.0,94906.0,0.10667375]
[1739898188553,0.00988651,94910.0,94906.0,0.10267375]
[1739898189132,0.02048915,94910.0,94908.0,0.158047]
[1739898189338,0.01060264,94910.0,94909.0,0.18260365]
[1739898189547,0.02110911,94922.0,94909.0,0.18260365]
[1739898189778,0.02110911,94922.0,94917.0,0.158031]
[1739898189926,0.0165091,94929.0,94915.0,0.210713]
[1739898190121,0.1574,94928.0,94922.0,0.158023]
[1739898190319,0.1574,94928.0,94923.0,0.1287]
[1739898191019,0.1574,94928.0,94923.0,0.286722]
[1739898191441,0.1574,94928.0,94923.0,0.1287]
[1739898191649,0.315414,94928.0,94923.0,0.1287]
[1739898191879,0.002,94928.0,94923.0,0.1287]
[1739898192310,0.00327582,94928.0,94916.0,0.32538206]
[1739898192493,0.158032,94917.0,94916.0,0.32538206]
[1739898192703,0.158032,94917.0,94916.0,0.32551448]
[1739898193235,4.883132,94917.0,94916.0,0.32551448]
[1739898193389,5.096749,94917.0,94916.0,0.32551448]
[1739898194210,5.096749,94917.0,94916.0,0.00013242]
[1739898194415,5.34925265,94917.0,94916.0,0.00013242]
[1739898195034,5.34925265,94917.0,94916.0,0.00213242]
[1739898197492,0.44006178,94907.0,94906.0,0.00061171]
[1739898197895,0.18549197,94907.0,94906.0,0.00061171]
[1739898198084,0.18249197,94907.0,94906.0,0.00061171]
[1739898198499,0.18249197,94907.0,94906.0,0.00161171]
[1739898198727,0.18249197,94907.0,94906.0,0.00061171]
[1739898198941,0.20388628,94907.0,94906.0,0.00061171]
[1739898199364,0.19595609,94907.0,94906.0,0.00061171]
[1739898200238,0.01651278,94907.0,94906.0,0.00261171]
[1739898200449,0.17456178,94907.0,94906.0,0.00061171]
[1739898200684,0.17456178,94907.0,94906.0,0.00261171]
[1739898200910,0.17456178,94907.0,94906.0,0.00061171]
[1739898201337,0.01651278,94907.0,94906.0,0.00261171]
[1739898201539,0.01651278,94907.0,94906.0,0.00061171]
[1739898201982,0.01651278,94907.0,94906.0,0.00261171]
[1739898202480,0.01651278,94907.0,94906.0,0.10511536]
[1739898202925,0.021219,94913.0,94907.0,0.158049]
[1739898203141,0.158037,94915.0,94908.0,0.10250365]
[1739898203352,0.1583732,94917.0,94908.0,0.10250365]
[1739898203561,0.158035,94916.0,94909.0,0.158046]
[1739898203769,0.158039,94913.0,94908.0,0.10250365]
[1739898203974,0.210712,94916.0,94908.0,0.10250365]
[1739898204189,0.0003402,94917.0,94908.0,0.10250365]
[1739898204396,0.158034,94916.0,94909.0,0.158044]
[1739898204753,0.0003402,94917.0,94916.0,0.158034]
[1739898205342,0.0003402,94917.0,94916.0,0.234634]
[1739898205553,0.0003402,94917.0,94916.0,0.33713765]
[1739898205762,0.0003402,94917.0,94916.0,0.38263765]
[1739898206608,0.0003402,94917.0,94916.0,0.38763765]
[1739898206827,0.0003402,94917.0,94916.0,0.22960365]
[1739898207065,0.0003402,94917.0,94916.0,0.38263765]
[1739898207279,0.0003402,94917.0,94916.0,0.38963765]
[1739898209000,0.0003402,94917.0,94916.0,1.42511971]
[1739898209210,0.0003402,94917.0,94916.0,1.42528991]
[1739898209417,0.0003402,94917.0,94916.0,1.52779356]
[1739898209847,0.0003402,94917.0,94916.0,1.54779356]
[1739898210604,0.0003402,94917.0,94916.0,1.54079356]
[1739898210811,0.0003402,94917.0,94916.0,1.52779356]
[1739898211210,0.0003402,94917.0,94916.0,1.25228991]
[1739898212101,0.0003402,94917.0,94916.0,0.55715591]
[1739898212299,0.1583722,94917.0,94916.0,0.55715591]
[1739898212506,0.01778251,94929.0,94916.0,0.33255226]
[1739898212706,3.1741,94928.0,94916.0,0.33255226]
[1739898212906,0.158028,94920.0,94916.0,0.43505591]
[1739898213111,0.14975007,94930.0,94916.0,0.42805591]
[1739898213314,0.148032,94917.0,94916.0,0.0001702]
[1739898213583,0.148032,94917.0,94916.0,0.0071702]
[1739898213986,0.148032,94917.0,94916.0,0.0111702]
[1739898214420,0.210684,94929.0,94916.0,0.0041702]
[1739898214623,0.12748976,94928.0,94916.0,0.01288722]
[1739898214776,0.158018,94926.0,94919.0,0.158029]
[1739898215538,0.158019,94925.0,94917.0,0.10250365]
[1739898215761,0.00782213,94947.0,94920.0,0.1312]
[1739898215970,0.0165068,94925.0,94924.0,0.158021]
[1739898216178,0.0772,94968.0,94932.0,0.158007]
[1739898216360,0.157981,94948.0,94932.0,0.26051065]
[1739898216595,0.01067897,94945.0,94932.0,0.26051065]
[1739898217402,0.16866597,94945.0,94932.0,0.26051065]
[1739898217553,0.16866597,94945.0,94932.0,0.26451065]
[1739898217790,0.01067897,94945.0,94932.0,0.26451065]
[1739898218665,0.210652,94944.0,94932.0,0.26451065]
[1739898218868,0.157989,94944.0,94932.0,0.26451065]
[1739898219081,0.01067897,94945.0,94932.0,0.26451065]
[1739898220620,0.157992,94942.0,94932.0,0.26451065]
[1739898220827,0.15799,94943.0,94932.0,0.26451065]
[1739898221030,0.1583462,94933.0,94932.0,0.43188571]
[1739898221239,0.0003402,94933.0,94932.0,0.58989271]
[1739898221613,0.0003402,94933.0,94932.0,0.62936035]
[1739898224149,0.0003402,94933.0,94932.0,0.58989271]
[1739898224567,0.0003402,94933.0,94932.0,0.43188571]
[1739898224774,0.1583462,94933.0,94932.0,0.43188571]
[1739898224979,0.1583462,94933.0,94932.0,0.32938206]
[1739898225360,3.0447462,94933.0,94932.0,0.32938206]
[1739898225499,1.2604462,94933.0,94932.0,0.32938206]
[1739898225703,0.8726462,94933.0,94932.0,0.32938206]
[1739898225956,0.8726462,94933.0,94932.0,0.48738906]
[1739898225963,0.0003402,94933.0,94932.0,0.48738906]
[1739898226149,0.1583462,94933.0,94932.0,0.32938206]
[1739898226927,0.1583462,94933.0,94932.0,0.004]
[1739898227128,0.0003402,94933.0,94932.0,0.004]
[1739898227539,0.1583462,94933.0,94932.0,0.004]
[1739898228153,0.21924034,94933.0,94932.0,0.004]
[1739898228351,5.15668152,94933.0,94932.0,0.004]
[1739898228654,2.8028462,94933.0,94932.0,0.004]
[1739898228852,2.8028462,94933.0,94923.0,0.32538206]
[1739898228853,0.158021,94924.0,94923.0,0.32538206]
[1739898229547,0.17452791,94924.0,94923.0,0.32538206]
[1739898229941,5.11324491,94924.0,94923.0,0.32538206]
[1739898230369,3.53772791,94924.0,94923.0,0.32538206]
[1739898230576,1.28302791,94924.0,94923.0,0.32538206]
[1739898231274,1.28302791,94924.0,94905.0,0.0764]
[1739898231275,1.12500691,94924.0,94905.0,0.0764]
[1739898231480,0.158032,94917.0,94905.0,0.0764]
[1739898231687,0.158032,94917.0,94902.0,0.0466]
[1739898231888,0.158032,94917.0,94898.0,0.32538206]
[1739898232093,0.15930782,94917.0,94898.0,0.32538206]
[1739898232514,0.158032,94917.0,94898.0,0.32538206]
[1739898232716,0.158032,94917.0,94916.0,0.0031702]
[1739898233353,0.158032,94917.0,94916.0,0.0061702]
[1739898235010,0.158032,94917.0,94916.0,0.0001702]
[1739898235218,0.15,94918.0,94916.0,0.0001702]
[1739898235424,0.15,94918.0,94916.0,0.0031702]
[1739898235634,0.02145959,94918.0,94916.0,0.0031702]
[1739898235845,0.01650874,94921.0,94916.0,0.0031702]
[1739898236050,0.01650874,94921.0,94916.0,0.01114722]
[1739898236261,0.158031,94919.0,94916.0,0.00814722]
[1739898236465,0.158031,94919.0,94916.0,0.01114722]
[1739898236682,0.158031,94918.0,94916.0,0.0031702]
[1739898236884,0.158029,94919.0,94916.0,0.0001702]
[1739898237106,0.158029,94919.0,94916.0,0.0021702]
[1739898237326,0.01650874,94921.0,94920.0,0.158027]
[1739898237512,0.01650874,94921.0,94920.0,0.17892672]
[1739898237951,0.01650874,94921.0,94920.0,0.28143037]
[1739898238103,0.0003402,94933.0,94920.0,0.12340337]
[1739898238314,0.158009,94931.0,94923.0,0.158022]
[1739898238514,0.158013,94929.0,94924.0,0.10250365]
[1739898238717,0.210677,94932.0,94924.0,0.10250365]
[1739898238987,0.158009,94931.0,94924.0,0.26052365]
[1739898239822,0.158013,94929.0,94924.0,0.10250365]
[1739898240050,0.15801,94931.0,94924.0,0.26052365]
[1739898240535,0.158014,94928.0,94924.0,0.10350365]
[1739898240767,0.158012,94930.0,94924.0,0.10350365]
[1739898241119,0.0003402,94933.0,94924.0,0.10350365]
[1739898241322,0.0003402,94933.0,94924.0,0.13492411]